fUSD/lending_fUSD_20250526
["ID","MTS","AMOUNT","RATE_DAILY","PERIOD"]
[362397369,1748250641020,-420.0,0.00019999,2]
[362397370,1748250641029,-420.0,0.00019999,2]
[362397371,1748250641038,-420.0,0.00019999,2]
[362397372,1748250641048,-420.0,0.00019999,2]
[362397373,1748250641059,-316.8167604,0.00019999,2]
[362397374,1748250641068,-541.62,0.00019999,2]
[362397375,1748250641078,-262.12000236,0.00019999,2]
[362397376,1748250641087,-252.32,0.00019999,2]
[362397377,1748250641097,-420.0,0.00019999,2]
[362397378,1748250641106,-420.0,0.00019999,2]
[362397379,1748250641328,-200.16986966,0.00019999,2]
[362397380,1748250641339,-452.41607968,0.00019999,2]
[362397381,1748250641348,-422.43808987,0.00019999,2]
[362397382,1748250641360,-420.0,0.00019999,2]
[362397383,1748250641372,-420.0,0.00019999,2]
[362397384,1748250641384,-420.0,0.00019999,2]
[362397385,1748250641394,-420.0,0.00019999,2]
[362397386,1748250641404,-156.08839143,0.00019999,2]
[362397387,1748250641413,-420.0,0.00019999,2]
[362397388,1748250641422,-420.0,0.00019999,2]
[362397389,1748250641432,-420.0,0.00019999,2]
[362397390,1748250641441,-420.0,0.00019999,2]
[362397391,1748250641451,-420.0,0.00019999,2]
[362397392,1748250641460,-277.98746282,0.00019999,2]
[362397393,1748250641469,-186.379404,0.00019999,2]
[362397394,1748250641479,-420.0,0.00019999,2]
[362397395,1748250641488,-420.0,0.00019999,2]
[362397396,1748250641497,-420.0,0.00019999,2]
[362397397,1748250641507,-420.0,0.00019999,2]
[362397398,1748250641516,-420.0,0.00019999,2]
[362397399,1748250641525,-209.76,0.00019999,2]
[362397400,1748250641535,-420.0,0.00019999,2]
[362397401,1748250641544,-158.47,0.00019999,2]
[362397402,1748250641553,-420.0,0.00019999,2]
[362397403,1748250641563,-420.0,0.00019999,2]
[362397404,1748250641573,-420.0,0.00019999,2]
[362397405,1748250641582,-420.0,0.00019999,2]
[362397406,1748250641592,-196.41982955,0.00019999,2]
[362397407,1748250641602,-251.01889258,0.00019999,2]
[362397408,1748250641614,-500.0,0.00019999,2]
[362397409,1748250641626,-423.20893938,0.00019999,2]
[362397410,1748250641635,-500.0,0.00019999,2]
[362397411,1748250641644,-500.0,0.00019999,2]
[362397412,1748250641655,-500.0,0.00019999,2]
[362397413,1748250641665,-550.56455594,0.00019999,2]
[362397414,1748250641674,-500.0,0.00019999,2]
[362397415,1748250641683,-538.51811688,0.00019999,2]
[362397416,1748250641693,-175583.14868077,0.0002,3]
[362397417,1748250641712,-68829.08595697,0.0002,3]
[362397418,1748250641721,-125974.72453103,0.0002,2]
[362397419,1748250641733,-41935.26078795,0.0002,2]
[362397420,1748250641760,-12446.81598786,0.0002,2]
[362397421,1748250641771,-11720.67679787,0.0002,2]
[362397422,1748250641783,-16574.8515288,0.0002,2]
[362397423,1748250641795,-5869.39126525,0.0002,2]
[362397424,1748250641806,-12084.82183443,0.0002,2]
[362397425,1748250641818,-4691.97915948,0.0002,2]
[362397426,1748250641833,-6497.73637131,0.0002,2]
[362397427,1748250641897,-98496.74918834,0.0002,2]
[362397428,1748250641911,-1119.251274,0.0002,2]
[362397429,1748250641923,-1079.11692358,0.0002,2]
[362397430,1748250641934,-1075.2266137,0.0002,2]
[362397431,1748250641946,-464.1424812,0.0002,2]
[362397432,1748250641958,-5985.6882219,0.0002,2]
[362397433,1748250641969,-1096.6570096,0.0002,2]
[362397434,1748250641981,-1020.44852211,0.0002,2]
[362397435,1748250641993,-19201.527386,0.0002,2]
[362397436,1748250642005,-12827.24263431,0.0002,2]
[362397437,1748250642017,-1335.81629999,0.0002,2]
[362397438,1748250642029,-2123.19783396,0.0002,2]
[362397453,1748250643591,-32.00818858,0.00019482,2]
[362397454,1748250643603,-118.99181142,0.00019482,2]
[362397455,1748250643612,-8611.0600915,0.0002,2]
[362397458,1748250646346,-265.89976445,0.00019999,2]
[362397459,1748250646357,-154.10023555,0.00019999,2]
[362397460,1748250646368,-420.0,0.00019999,2]
[362397461,1748250646378,-4265.89976245,0.0002,2]
[362397462,1748250646390,-1001.6461711,0.0002,2]
[362397463,1748250646405,-12653.68041038,0.0002,2]
[362397464,1748250646512,-260.43533064,0.0002,2]
[362397465,1748250764438,5562.0,0.000173,5]
[362397466,1748250764996,14419.0,0.00016,2]
[362397467,1748250765703,-158.48703992,0.000167,3]
[362397468,1748250768397,-313.87296008,0.000167,3]
[362397469,1748250773546,-242.54422548,0.000167,3]
[362397470,1748250776793,-167.46577452,0.000167,3]
[362397471,1748250778966,-199.5341028,0.000167,3]
[362397472,1748250786682,-376.36573027,0.000167,3]
[362397473,1748250789479,-226.9934084,0.000167,3]
[362397474,1748250791188,-212.99998,0.000167,3]
[362397475,1748250796884,3664.0,0.000171,5]
[362397477,1748250822222,150.0,1e-08,2]
[362397480,1748251180577,500.0,0.00026,120]
[362397481,1748251457417,987.77893401,1e-06,2]
[362397482,1748251458793,10000.0,0.00023,30]
[362397483,1748251478421,191.79,0.00013699,2]
[362397487,1748251521648,10000.0,0.00023,30]
[362397488,1748251542805,10000.0,0.00025,60]
[362397489,1748251550338,250.0,0.00015,2]
[362397499,1748251654546,-200.0,0.00017,2]
[362397500,1748251664258,912.52,0.00016475,2]
[362397519,1748251832332,-100.0,0.00017,2]
[362397520,1748251832342,-200.0,0.00017336,2]
[362397521,1748251832351,-200.0,0.00017673,2]
[362397522,1748251832360,-885.3344586,0.00018313,2]
[362397523,1748251832371,-2345.9959154,0.00018313,2]
[362397524,1748251832381,-46.66289444,0.00018406,7]
[362397525,1748251832394,-103.33710556,0.00018406,7]
[362397526,1748251832404,-736.91,0.00018406,2]
[362397527,1748251832414,-300.0,0.00018461,2]
[362397528,1748251832424,-300.0,0.00018461,2]
[362397529,1748251832435,-814.15066279,0.00018461,2]
[362397530,1748251832459,-385.84933721,0.00018461,2]
[362397531,1748251832468,-1500.08566279,0.00018462,2]
[362397532,1748251832607,-3891.31433721,0.00018462,2]
[362397534,1748251832618,-510.63,0.00018485,2]
[362397536,1748251832627,-250.0,0.00018502,2]
[362397537,1748251832637,-2486.74,0.00018511,2]
[362397538,1748251832646,-300.0,0.00018538,2]
[362397539,1748251832657,-2462.93,0.0001854,2]
[362397540,1748251832667,-517.04,0.00018547,2]
[362397541,1748251832676,-5964.21171431,0.00018575,2]
[362397593,1748251838279,-983.76745006,0.00018575,2]
[362397594,1748251838291,-2212.14033473,0.00018575,2]
[362397595,1748251838338,-2994.9105009,0.00018575,2]
[362397596,1748251838347,-49.04861736,0.00018619,2]
[362397597,1748251838358,-550.0,0.00018619,2]
[362397598,1748251838369,-357.95138264,0.00018619,2]
[362397599,1748251838378,-250.0,0.00018668,2]
[362397600,1748251838387,-187.01,0.00018674,2]
[362397601,1748251838396,-300.0,0.00018699,2]
[362397602,1748251838405,-250.0,0.000187,2]
[362397603,1748251838414,-200.0,0.000187,2]
[362397604,1748251838423,-250.0,0.000187,2]
[362397605,1748251838433,-200.0,0.000187,2]
[362397606,1748251838442,-250.0,0.000187,2]
[362397607,1748251838451,-200.0,0.000187,2]
[362397608,1748251838460,-912.52,0.00018739,2]
[362397609,1748251838470,-248.44643001,0.0001886,2]
[362397610,1748251838479,-169.47,0.0001886,2]
[362397611,1748251838489,-394.97296315,0.000189,2]
[362397612,1748251838499,-350.0,0.00019,2]
[362397613,1748251838508,-166.14,0.00019037,2]
[362397614,1748251838518,-680.0,0.00019037,2]
[362397615,1748251838527,-248.44643001,0.00019074,2]
[362397616,1748251838536,-1000.0,0.00019074,2]
[362397617,1748251838546,-500.0,0.0001908,2]
[362397618,1748251838555,-151.0,0.00019096,2]
[362397619,1748251838564,-315.1,0.00019104,2]
[362397620,1748251838573,-248.44643001,0.00019104,2]
[362397621,1748251838582,-151.0,0.00019104,2]
[362397622,1748251838591,-151.0,0.00019112,2]
[362397623,1748251838600,-151.0,0.00019116,2]
[362397624,1748251838609,-154.601241,0.00019178,2]
[362397625,1748251838618,-204.980763,0.00019178,2]
[362397626,1748251838628,-169.3982,0.00019178,2]
[362397627,1748251838637,-279.569109,0.00019178,2]
[362397628,1748251838646,-154.601241,0.00019178,2]
[362397629,1748251838658,-279.569107,0.00019178,2]
[362397630,1748251838668,-155.31617,0.00019178,2]
[362397632,1748251838677,-151.187449,0.00019178,2]
[362397634,1748251838686,-186.379404,0.00019178,2]
[362397635,1748251838695,-279.56911,0.00019178,2]
[362397636,1748251838704,-151.187449,0.00019178,2]
[362397637,1748251838713,-186.379404,0.00019178,2]
[362397638,1748251838723,-186.379405,0.00019178,2]
[362397639,1748251838734,-152.751793,0.00019178,2]
[362397640,1748251838743,-161.289869,0.00019178,2]
[362397641,1748251838752,-161.289869,0.00019178,2]
[362397642,1748251838761,-161.289869,0.00019178,2]
[362397643,1748251838770,-154.611546,0.00019178,2]
[362397644,1748251838779,-154.601241,0.00019178,2]
[362397645,1748251838789,-151.433267,0.00019178,2]
[362397646,1748251838798,-164.883836,0.00019178,2]
[362397647,1748251838807,-186.379404,0.00019178,2]
[362397648,1748251838817,-151.187449,0.00019178,2]
[362397650,1748251838827,-155.316171,0.00019178,2]
[362397652,1748251838836,-151.0,0.00019178,2]
[362397653,1748251838845,-184.7,0.00019178,2]
[362397654,1748251838855,-161.289869,0.00019369,2]
[362397655,1748251838867,-151.433267,0.00019369,2]
[362397656,1748251838876,-500.0,0.00019599,2]
[362397657,1748251838886,-500.0,0.00019599,2]
[362397658,1748251838898,-410.213981,0.00019599,2]
[362397659,1748251838908,-500.0,0.00019626,2]
[362397660,1748251838918,-500.0,0.00019626,2]
[362397661,1748251838927,-500.0,0.00019654,2]
[362397662,1748251838937,-635.0,0.00019654,2]
[362397663,1748251838947,-500.0,0.00019681,2]
[362397664,1748251838957,-500.0,0.00019709,2]
[362397665,1748251838966,-161.289869,0.00019726,2]
[362397666,1748251838975,-161.289869,0.00019726,2]
[362397667,1748251838985,-156.587,0.00019726,2]
[362397668,1748251838995,-394.97296301,0.00019797,2]
[362397669,1748251839004,-199.66666668,0.00019896,2]
[362397670,1748251839014,-1846.86047167,0.00019897,2]
[362397671,1748251839024,-1846.86047159,0.00019897,2]
[362397672,1748251839033,-263.88862953,0.00019897,2]
[362397673,1748251839043,-500.0,0.00019897,2]
[362397674,1748251839052,-500.0,0.00019897,2]
[362397675,1748251839061,-500.0,0.00019897,2]
[362397676,1748251839070,-500.0,0.00019897,2]
[362397677,1748251839080,-500.0,0.00019897,2]
[362397678,1748251839090,-500.0,0.00019897,2]
[362397679,1748251839099,-433.42273873,0.00019897,2]
[362397680,1748251839110,-500.0,0.00019897,2]
[362397681,1748251839120,-395.6480487,0.00019897,2]
[362397682,1748251839129,-165.41792848,0.00019897,2]
[362397683,1748251839140,-1846.86047159,0.00019898,2]
[362397684,1748251839151,-1846.86047159,0.00019898,2]
[362397685,1748251839161,-199.66666666,0.00019898,2]
[362397686,1748251839172,-1846.86047159,0.00019898,2]
[362397687,1748251839183,-1846.86047159,0.00019899,2]
[362397688,1748251839192,-186.379404,0.00019899,2]
[362397689,1748251839201,-186.379405,0.00019899,2]
[362397690,1748251839210,-161.289869,0.00019899,2]
[362397691,1748251839219,-161.289869,0.00019899,2]
[362397692,1748251839228,-161.289869,0.00019899,2]
[362397693,1748251839238,-154.611546,0.00019899,2]
[362397694,1748251839247,-114.04453377,0.00019899,2]
[362397695,1748251839259,-37.38873323,0.00019899,2]
[362397696,1748251839268,-186.379404,0.00019899,2]
[362397697,1748251839277,-1846.86047159,0.00019899,2]
[362397698,1748251839286,-1846.86047159,0.00019899,2]
[362397699,1748251839295,-888.53994242,0.000199,2]
[362397700,1748251839306,-958.32052917,0.000199,2]
[362397701,1748251839315,-342.57826749,0.000199,2]
[362397702,1748251839325,-65.62620334,0.000199,2]
[362397703,1748251839336,-1781.23426825,0.000199,2]
[362397704,1748251839344,-155.09069364,0.000199,2]
[362397705,1748251839353,-199.66666666,0.000199,2]
[362397706,1748251839362,-1852.35518536,0.000199,5]
[362397707,1748251839386,-151.11723369,0.000199,5]
[362397708,1748251839395,-1108.4179844,0.000199,2]
[362397709,1748251839406,-855.53871738,0.000199,2]
[362397710,1748251839415,-359.3921949,0.000199,2]
[362397711,1748251839424,-163.69623001,0.000199,2]
[362397712,1748251839434,-77.76711761,0.000199,2]
[362397713,1748251839444,-169.3982,0.00019921,2]
[362397714,1748251839453,-155.31617,0.00019921,2]
[362397715,1748251839462,-186.379404,0.00019921,2]
[362397716,1748251839471,-161.289869,0.00019921,2]
[362397717,1748251839480,-155.316171,0.00019921,2]
[362397718,1748251839489,-620.1082962,0.00019973,2]
[362397719,1748251839499,-500.0,0.00019973,2]
[362397720,1748251839508,-81.15494956,0.00019973,2]
[362397721,1748251839519,-248.03515186,0.00019973,2]
[362397722,1748251839527,-500.0,0.00019973,2]
[362397723,1748251839537,-318.3234731,0.00019973,2]
[362397724,1748251839546,-168.64137504,0.00019973,2]
[362397725,1748251839556,-331.35862496,0.00019973,2]
[362397726,1748251839566,-482.27192127,0.00019973,2]
[362397727,1748251839576,-500.0,0.00019973,2]
[362397728,1748251839585,-500.0,0.00019973,2]
[362397729,1748251839594,-500.0,0.00019973,2]
[362397730,1748251839603,-500.0,0.00019973,2]
[362397731,1748251839613,-500.0,0.00019973,2]
[362397732,1748251839622,-500.0,0.00019973,2]
[362397733,1748251839632,-500.71047097,0.00019973,2]
[362397734,1748251839643,-150.0,0.00019973,2]
[362397735,1748251839652,-150.0,0.00019973,2]
[362397736,1748251839667,-150.0,0.00019973,2]
[362397737,1748251839676,-86.09476581,0.00019989,2]
[362397738,1748251839692,-75.19510319,0.00019989,2]
[362397739,1748251839703,-151.433267,0.00019989,2]
[362397740,1748251839713,-1104.6110376,0.00019989,2]
[362397741,1748251839722,-450.41186418,0.0001999,2]
[362397742,1748251839735,-2093.21959934,0.0001999,2]
[362397743,1748251839748,-829.45259819,0.0001999,2]
[362397749,1748251840395,-1242.71372038,0.00018674,2]
[362397750,1748251840406,-810.13574225,0.0001999,2]
[362397751,1748251840418,-758.79780336,0.0001999,2]
[362397752,1748251840430,-2240.63352129,0.0001999,2]
[362397753,1748251840441,-1098.9,0.0001999,2]
[362397754,1748251840452,-518.36008586,0.0001999,2]
[362397755,1748251840462,-100884.62114164,0.0001999,2]
[362397756,1748251840471,-1104.6110376,0.0001999,2]
[362397757,1748251840482,-1104.6110376,0.0001999,2]
[362397758,1748251840491,-12500.0,0.0001999,2]
[362397759,1748251840503,-161.289869,0.00019992,2]
[362397760,1748251840512,-161.289869,0.00019992,2]
[362397761,1748251840521,-186.379404,0.00019993,2]
[362397762,1748251840531,-186.379405,0.00019993,2]
[362397763,1748251840540,-152.751793,0.00019993,2]
[362397764,1748251840550,-161.289869,0.00019993,2]
[362397765,1748251840559,-154.611546,0.00019993,2]
[362397766,1748251840568,-154.601241,0.00019993,2]
[362397767,1748251840577,-151.433267,0.00019993,2]
[362397768,1748251840588,-186.379404,0.00019993,2]
[362397769,1748251840597,-161.289869,0.00019994,2]
[362397770,1748251840607,-161.289869,0.00019994,2]
[362397771,1748251840616,-420.0,0.00019994,2]
[362397772,1748251840626,-420.95501457,0.00019995,2]
[362397773,1748251840635,-420.0,0.00019995,2]
[362397774,1748251840647,-420.0,0.00019995,2]
[362397775,1748251840658,-449.18620554,0.00019995,2]
[362397776,1748251840670,-420.0,0.00019995,2]
[362397777,1748251840679,-420.0,0.00019995,2]
[362397778,1748251840690,-420.0,0.00019995,2]
[362397779,1748251840701,-420.0,0.00019995,2]
[362397780,1748251840713,-420.0,0.00019995,2]
[362397781,1748251840723,-420.0,0.00019995,2]
[362397782,1748251840733,-500.9327533,0.00019995,2]
[362397783,1748251840743,-420.0,0.00019995,2]
[362397784,1748251840753,-420.0,0.00019995,2]
[362397785,1748251840763,-420.0,0.00019995,2]
[362397786,1748251840773,-420.0,0.00019995,2]
[362397787,1748251840784,-95264.2,0.00019995,2]
[362397788,1748251840794,-421.6230091,0.00019995,2]
[362397789,1748251840804,-420.0,0.00019995,2]
[362397790,1748251840815,-420.0,0.00019995,2]
[362397791,1748251840825,-421.93271945,0.00019995,2]
[362397792,1748251840835,-420.0,0.00019995,2]
[362397793,1748251840844,-420.0,0.00019995,2]
[362397794,1748251840854,-421.40866004,0.00019995,2]
[362397795,1748251840863,-181.65004279,0.00019995,2]
[362397796,1748251840872,-420.0,0.00019995,2]
[362397797,1748251840882,-420.0,0.00019995,2]
[362397798,1748251840892,-427.832265,0.00019995,2]
[362397799,1748251840901,-420.0,0.00019995,2]
[362397800,1748251840911,-420.0,0.00019995,2]
[362397801,1748251840920,-420.0,0.00019995,2]
[362397803,1748251840930,-3021.39,0.00019995,2]
[362397805,1748251840939,-420.0,0.00019995,2]
[362397807,1748251840948,-420.0,0.00019995,2]
[362397809,1748251840958,-420.0,0.00019995,2]
[362397810,1748251840967,-420.0,0.00019995,2]
[362397811,1748251840976,-420.0,0.00019995,2]
[362397813,1748251840986,-420.0,0.00019995,2]
[362397814,1748251840995,-420.0,0.00019995,2]
[362397815,1748251841005,-197.92967243,0.00019995,2]
[362397816,1748251841015,-420.0,0.00019995,2]
[362397817,1748251841025,-420.0,0.00019995,2]
[362397818,1748251841034,-420.0,0.00019995,2]
[362397819,1748251841043,-370.83809001,0.00019995,2]
[362397820,1748251841053,-224.49523829,0.00019995,2]
[362397821,1748251841063,-276.09483318,0.00019995,2]
[362397822,1748251841072,-500.0,0.00019995,2]
[362397823,1748251841082,-500.0,0.00019995,2]
[362397824,1748251841091,-500.0,0.00019995,2]
[362397825,1748251841100,-500.0,0.00019995,2]
[362397826,1748251841110,-500.0,0.00019995,2]
[362397827,1748251841120,-308.60412854,0.00019995,2]
[362397828,1748251841129,-420.0,0.00019995,2]
[362397829,1748251841138,-420.0,0.00019995,2]
[362397830,1748251841147,-420.0,0.00019995,2]
[362397831,1748251841156,-420.0,0.00019995,2]
[362397832,1748251841165,-420.0,0.00019995,2]
[362397833,1748251841175,-420.0,0.00019995,2]
[362397834,1748251841184,-420.0,0.00019995,2]
[362397835,1748251841193,-420.0,0.00019995,2]
[362397836,1748251841202,-299.92,0.00019995,2]
[362397837,1748251841211,-420.0,0.00019995,2]
[362397838,1748251841221,-420.0,0.00019995,2]
[362397839,1748251841231,-420.0,0.00019995,2]
[362397840,1748251841240,-529.26,0.00019995,2]
[362397841,1748251841252,-420.0,0.00019995,2]
[362397842,1748251841262,-420.0,0.00019995,2]
[362397843,1748251841271,-421.99685227,0.00019995,2]
[362397844,1748251841281,-420.0,0.00019995,2]
[362397845,1748251841290,-420.0,0.00019995,2]
[362397846,1748251841299,-551.06,0.00019995,2]
[362397847,1748251841310,-420.0,0.00019995,2]
[362397848,1748251841321,-420.0,0.00019995,2]
[362397849,1748251841330,-420.0,0.00019995,2]
[362397850,1748251841342,-420.0,0.00019995,2]
[362397851,1748251841351,-432.66,0.00019995,2]
[362397852,1748251841360,-420.0,0.00019995,2]
[362397853,1748251841368,-420.0,0.00019995,2]
[362397854,1748251841377,-420.69980096,0.00019995,2]
[362397855,1748251841386,-420.0,0.00019995,2]
[362397856,1748251841395,-181.12065254,0.00019995,2]
[362397857,1748251841404,-420.0,0.00019995,2]
[362397858,1748251841413,-420.0,0.00019995,2]
[362397859,1748251841423,-420.0,0.00019995,2]
[362397860,1748251841432,-420.0,0.00019995,2]
[362397861,1748251841442,-420.0,0.00019995,2]
[362397862,1748251841451,-421.18694311,0.00019995,2]
[362397863,1748251841461,-465.77533327,0.00019995,2]
[362397864,1748251841471,-420.0,0.00019995,2]
[362397865,1748251841481,-420.0,0.00019995,2]
[362397866,1748251841490,-420.0,0.00019995,2]
[362397867,1748251841501,-420.0,0.00019995,2]
[362397868,1748251841511,-420.0,0.00019995,2]
[362397869,1748251841520,-260.10292389,0.00019995,2]
[362397870,1748251841530,-420.0,0.00019995,2]
[362397871,1748251841539,-510.65598424,0.00019995,2]
[362397872,1748251841549,-420.0,0.00019995,2]
[362397873,1748251841558,-420.0,0.00019995,2]
[362397874,1748251841568,-420.0,0.00019995,2]
[362397875,1748251841577,-420.0,0.00019995,2]
[362397876,1748251841587,-542.63,0.00019995,2]
[362397877,1748251841596,-420.0,0.00019995,2]
[362397878,1748251841606,-420.0,0.00019995,2]
[362397879,1748251841615,-38302.5140113,0.00019996,2]
[362397880,1748251841625,-9316.20102,0.00019996,2]
[362397881,1748251841634,-26274.8199729,0.00019996,2]
[362397882,1748251841643,-185628.3307051,0.00019996,2]
[362397883,1748251841653,-161.289869,0.00019997,2]
[362397884,1748251841666,-151.433267,0.00019997,2]
[362397885,1748251841676,-299.22795996,0.00019997,2]
[362397886,1748251841685,-420.0,0.00019997,2]
[362397887,1748251841695,-421.20135633,0.00019997,2]
[362397888,1748251841705,-421.4470056,0.00019997,2]
[362397889,1748251841715,-422.94887822,0.00019997,2]
[362397890,1748251841724,-421.18622346,0.00019997,2]
[362397891,1748251841734,-420.0,0.00019997,2]
[362397892,1748251841744,-420.0,0.00019997,2]
[362397893,1748251841754,-500.0,0.00019997,2]
[362397894,1748251841764,-421.82716794,0.00019997,2]
[362397895,1748251841774,-420.0,0.00019997,2]
[362397896,1748251841784,-420.0,0.00019997,2]
[362397897,1748251841794,-420.0,0.00019997,2]
[362397898,1748251841806,-464.42,0.00019997,2]
[362397899,1748251841815,-448.26066792,0.00019997,2]
[362397900,1748251841827,-179.19,0.00019997,2]
[362397901,1748251841836,-420.0,0.00019997,2]
[362397902,1748251841846,-420.0,0.00019997,2]
[362397903,1748251841856,-491.27389932,0.00019997,2]
[362397904,1748251841866,-420.0,0.00019997,2]
[362397905,1748251841875,-432.3,0.00019997,2]
[362397906,1748251841885,-420.0,0.00019997,2]
[362397907,1748251841895,-292.42419424,0.00019997,2]
[362397908,1748251841905,-420.0,0.00019997,2]
[362397909,1748251841914,-420.0,0.00019997,2]
[362397910,1748251841923,-420.0,0.00019997,2]
[362397911,1748251841933,-420.0,0.00019997,2]
[362397912,1748251841944,-420.0,0.00019997,2]
[362397913,1748251841954,-420.0,0.00019997,2]
[362397914,1748251841963,-165.26,0.00019997,2]
[362397915,1748251841973,-420.0,0.00019997,2]
[362397916,1748251841983,-420.0,0.00019997,2]
[362397917,1748251841993,-420.0,0.00019997,2]
[362397918,1748251842004,-537.83987271,0.00019997,2]
[362397919,1748251842014,-420.0,0.00019997,2]
[362397920,1748251842025,-420.0,0.00019997,2]
[362397921,1748251842035,-465.06,0.00019997,2]
[362397922,1748251842044,-420.0,0.00019997,2]
[362397923,1748251842054,-420.0,0.00019997,2]
[362397924,1748251842063,-420.0,0.00019997,2]
[362397925,1748251842072,-420.0,0.00019997,2]
[362397926,1748251842082,-420.0,0.00019997,2]
[362397927,1748251842091,-420.0,0.00019997,2]
[362397928,1748251842101,-420.0,0.00019997,2]
[362397929,1748251842110,-420.0,0.00019997,2]
[362397930,1748251842120,-296.71769346,0.00019997,2]
[362397931,1748251842129,-483.68043406,0.00019997,2]
[362397932,1748251842139,-420.0,0.00019997,2]
[362397933,1748251842148,-421.97149948,0.00019997,2]
[362397934,1748251842157,-420.0,0.00019997,2]
[362397935,1748251842167,-420.0,0.00019997,2]
[362397936,1748251842177,-420.0,0.00019997,2]
[362397937,1748251842187,-424.34747685,0.00019997,2]
[362397938,1748251842196,-420.0,0.00019997,2]
[362397939,1748251842205,-420.0,0.00019997,2]
[362397940,1748251842215,-420.0,0.00019997,2]
[362397941,1748251842225,-420.0,0.00019997,2]
[362397942,1748251842234,-474.49,0.00019997,2]
[362397943,1748251842243,-341.0367803,0.00019997,2]
[362397944,1748251842254,-420.0,0.00019997,2]
[362397945,1748251842264,-420.0,0.00019998,2]
[362397946,1748251842273,-420.0,0.00019998,2]
[362397947,1748251842282,-420.0,0.00019998,2]
[362397948,1748251842291,-420.0,0.00019998,2]
[362397949,1748251842300,-169.3982,0.00019998,2]
[362397950,1748251842310,-499.99,0.00019998,2]
[362397951,1748251842319,-500.0,0.00019998,2]
[362397952,1748251842329,-155.31617,0.00019998,2]
[362397953,1748251842338,-186.379404,0.00019998,2]
[362397954,1748251842347,-282.08637407,0.00019998,2]
[362397955,1748251842358,-428.32146073,0.00019998,2]
[362397956,1748251842368,-420.0,0.00019998,2]
[362397957,1748251842377,-420.0,0.00019998,2]
[362397958,1748251842387,-420.0,0.00019998,2]
[362397959,1748251842396,-420.0,0.00019998,2]
[362397960,1748251842408,-420.0,0.00019998,2]
[362397961,1748251842417,-420.0,0.00019998,2]
[362397962,1748251842426,-420.0,0.00019998,2]
[362397963,1748251842435,-420.0,0.00019998,2]
[362397964,1748251842445,-420.0,0.00019998,2]
[362397965,1748251842455,-420.0,0.00019998,2]
[362397966,1748251842465,-337.0,0.00019998,2]
[362397967,1748251842474,-420.0,0.00019998,2]
[362397968,1748251842483,-420.0,0.00019998,2]
[362397969,1748251842493,-420.0,0.00019998,2]
[362397970,1748251842503,-420.0,0.00019998,2]
[362397971,1748251842514,-420.0,0.00019998,2]
[362397972,1748251842523,-159.34919675,0.00019998,2]
[362397973,1748251842533,-420.0,0.00019998,2]
[362397974,1748251842542,-211.38,0.00019998,2]
[362397975,1748251842551,-220.05671938,0.00019998,2]
[362397976,1748251842562,-420.0,0.00019998,2]
[362397977,1748251842572,-432.50775067,0.00019998,2]
[362397978,1748251842582,-420.0,0.00019998,2]
[362397979,1748251842786,-451.01434155,0.00019998,2]
[362397980,1748251842804,-480.66990121,0.00019998,2]
[362397981,1748251842815,-420.0,0.00019998,2]
[362397982,1748251842825,-422.94179654,0.00019998,2]
[362397983,1748251842836,-420.0,0.00019998,2]
[362397984,1748251842847,-475.79281811,0.00019998,2]